{"text_format":"3","workbook":"xlsx","n_sheets":5,"sheets":["ЗП","МЗ","ОС","Накл.затр","ИТОГ"],"not_rendered":{"defined_names":1},"read":"whole","date_system":"1900"}

{"sheet":"ЗП","index":0,"n_rows":8,"n_cols":5,"rows_kept":8,"merged":[[0,0,0,4],[1,0,1,4],[2,0,2,4],[3,0,3,4]]}
["Калькуляционный метод формирования цены на платные услуги"]
["РАСЧЕТ"]
["затрат на оплату труда основного персонала, непосредственно"]
["участвующего в процессе оказания платной услуги"]
[]
["Наименование должности","Средняяя заработная плата, включая начисления на выплаты по оплате труда, рублей в месяц","Месячный фонд рабочего времени, минут","Норма времени на оказание платной услуги, минут","Затраты на оплату труда персонала, рублей"]
[1,2,3,4,5]
["Воспитатель Исхакова А.Ф.",{"v":20796.83,"d":"20,796.83"},9072,30,{"$f":"(B8/C8)*D8","v":{"v":68.77258597883598,"d":"68.77"}}]

{"sheet":"МЗ","index":1,"n_rows":17,"n_cols":7,"rows_kept":17,"merged":[[2,0,2,6],[3,0,3,6],[4,0,4,6],[16,0,16,5]]}
[]
[]
["РАСЧЕТ"]
["затрат на материальные запасы, полностью потребляемые"]
["в процессе оказания платной услуги (работы)"]
[]
["№ п/п","Наименование товара, составляющего материальный запас","Ед. изм.","Норма потребления","Объем оказания платных услуг за норму времени","Цена за единицу (ср.рын.стоим., на 01.09.15г.)","Всего затрат материальных запасов"]
[1,2,3,4,5,6,7]
[1,"Мука","шт",2,30,20,{"$f":"D9*F9","v":40}]
[2,"Соль","шт",5,30,25,{"$f":"D10*F10","v":125}]
[3,"Гуашь","шт",2,30,30,60]
[4,"Пайетки","шт",1,30,30,30]
[5,"Ватные диски","шт",2,30,20,40]
[6,"Ватные палочки","шт",1,30,15,15]
[7,"Бумага","шт",1,30,180,180]
[8,"Картон белый","шт",2,30,25,50]
["ИТОГО",{"$nulls":5},{"$f":"SUM(G9:G16)/8","v":67.5}]

{"sheet":"ОС","index":2,"n_rows":10,"n_cols":7,"rows_kept":10,"merged":[[2,0,2,6],[3,0,3,6],[4,0,4,6],[9,0,9,1]]}
[]
[]
["РАСЧЕТ"]
["суммы начисленной амортизации оборудования"]
["используемого при оказании платной услуги (работы)"]
[]
["№ п/п","Наименование оборудования","Балансовая стоимость","Годовая норма износа, %","Годовая норма времени работы оборудования, часов","Время работы оборудования в процессе оказания платной услуги, часов","Сумма начисленной амортизации"]
[1,2,3,4,5,6,7]
[1,"-",{"v":0,"d":"0.00"},0,0,30,{"$f":"(C9*D9*E9)/F9","v":0}]
["ИТОГО",{"$nulls":5},{"$f":"SUM(G9:G9)","v":0}]

{"sheet":"Накл.затр","index":3,"n_rows":16,"n_cols":3,"rows_kept":16,"merged":[[2,0,2,2],[3,0,3,2],[4,0,4,2],[5,0,5,2],[15,0,15,1]]}
[]
[]
["РАСЧЕТ"]
["накладных затрат, необходимых для обеспечения"]
["деятельности учреждения при оказании"]
["платной услуги (работы)"]
[]
["№ п/п","Наименование статей затрат","Сумма"]
[1,2,3]
[1,"Прогноз затрат на административно-управленческий персонал",{"$f":"(76115.09*1.302)*12","v":{"v":1189222.16616,"d":"1,189,222.17"}}]
[2,"Прогноз затрат общехозяйственного назначения",{"v":2647607.6,"d":"2,647,607.60"}]
[3,"Прогноз суммы начисленной амортизации имущества общехозяйственного назначения",{"v":188965.44,"d":"188,965.44"}]
[4,"Прогноз суммарного фонда оплаты труда основного персонала",{"$f":"(511653.22*1.302)*12","v":{"v":7994069.909279999,"d":"7,994,069.91"}}]
[5,"Коэффициент накладных затрат",{"$f":"(C10+C11+C12)/C13","v":{"v":0.5035976982746441,"d":"0.50"}}]
[6,"Затраты на основной персонал, участвующий в предоставлении платной услуги",{"$f":"ЗП!E8","v":{"v":68.77258597883598,"d":"68.77"}}]
["ИТОГО",null,{"$f":"(C14*C15)/8","v":{"v":4.329214500417107,"d":"4.33"}}]

{"sheet":"ИТОГ","index":4,"n_rows":17,"n_cols":4,"rows_kept":17,"merged":[[0,0,0,3],[1,0,1,3],[2,0,2,3],[3,0,3,3],[15,0,15,1]]}
["РАСЧЕТ"]
["накладных затрат, необходимых для обеспечения"]
["деятельности учреждения при оказании"]
["платной услуги (работы)"]
[]
["№ п/п","Наименование статей затрат","Единица измерения","Показатель"]
[1,2,3,4]
[1,"Затраты на оплату труда основного персонала","руб",{"$f":"ЗП!E8","v":{"v":68.77258597883598,"d":"68.77"}}]
[2,"Всего затрат материальных запасов","руб",{"$f":"МЗ!G17","v":{"v":67.5,"d":"67.50"}}]
[3,"Сумма начисленной амортизации оборудования, используемого при оказании платной услуги","руб",{"$f":"ОС!G10","v":{"v":0,"d":"0.00"}}]
[4,"Накладные затраты, относимые на платную услугу","руб",{"$f":"Накл.затр!C16","v":{"v":4.329214500417107,"d":"4.33"}}]
[5,"ИТОГО затрат","руб",{"$f":"SUM(D8:D11)","v":{"v":140.6018004792531,"d":"140.60"}}]
[6,"Рентабельность","проценты",{"v":10,"d":"10.00"}]
[7,"Затраты с учетом рентабельности","руб",{"$f":"D12*1.1","v":{"v":154.6619805271784,"d":"154.66"}}]
[8,"Плановое количество оказываемых услуг","шт",{"v":8,"d":"8.00"}]
["ЦЕНА ПЛАТНОЙ УСЛУГИ",null,"руб. за 1 услугу",{"$f":"D14*D15","v":{"v":1237.2958442174272,"d":"1,237.30"}}]
[{"$nulls":3},{"v":400,"d":"400.00"}]